bitfinex/quotes_SOLUSD_20260118
["timestamp","ask_amount","ask_price","bid_price","bid_amount"]
[1768704966786,1e-08,142.44,142.43,13.4040033]
[1768704967298,0.1,142.47,142.44,4.26232432]
[1768704967496,0.1,142.47,142.44,2.12068622]
[1768704967683,1e-08,142.47,142.44,2.12068622]
[1768704968002,1e-08,142.47,142.45,2.12068622]
[1768704969488,1e-08,142.47,142.46,4.26232432]
[1768704970300,1e-08,142.47,142.46,11.28183856]
[1768704971299,1e-08,142.49,142.46,9.14020046]
[1768704971484,1e-08,142.49,142.48,4.26232432]
[1768704973194,4.06432734,142.49,142.47,7.01893688]
[1768704974488,6.18501356,142.49,142.47,7.01893688]
[1768704976618,4.06432734,142.49,142.47,7.01893688]
[1768704976903,6.18501356,142.49,142.47,7.01893688]
[1768704977306,4.06432734,142.49,142.47,7.01893688]
[1768704981194,1e-08,142.49,142.47,4.26232432]
[1768704983510,1e-08,142.49,142.47,11.28114739]
[1768704983709,4.13380074,142.49,142.47,11.28114739]
[1768704986696,4.13380073,142.48,142.46,11.10824082]
[1768704987313,2.12068623,142.49,142.48,4.08889077]
[1768704987314,2.11928409,142.49,142.48,4.08889077]
[1768704987519,1e-08,142.49,142.48,4.08889077]
[1768704988016,1e-08,142.49,142.47,11.10783332]
[1768704990112,1e-08,142.49,142.48,4.08889077]
[1768704993322,1e-08,142.49,142.47,11.10783332]
[1768705003046,1e-08,142.49,142.47,13.2271174]
[1768705006443,1e-08,142.49,142.48,11.22092955]
[1768705007449,1e-08,142.49,142.48,7.01852891]
[1768705011240,1e-08,142.49,142.48,4.20240064]
[1768705011629,4.59080935,142.51,142.48,4.20240064]
[1768705015254,6.71009343,142.51,142.48,11.22068311]
[1768705016862,6.38002591,142.49,142.46,4.44564186]
[1768705017038,6.38002591,142.48,142.46,11.4651446]
[1768705017240,4.26074183,142.48,142.46,11.4651446]
[1768705023666,4.26074183,142.46,142.43,11.46647668]
[1768705023873,6.38002591,142.46,142.43,11.46647668]
[1768705024470,4.26074183,142.45,142.43,11.46647668]
[1768705024972,4.26074183,142.45,142.43,7.02083482]
[1768705027245,4.26074183,142.46,142.43,11.46647668]
[1768705029065,4.26074183,142.45,142.43,7.02083482]
[1768705036974,3.94774183,142.45,142.43,11.46647668]
[1768705038276,2.11928408,142.47,142.43,11.46647668]
[1768705039278,2.11928408,142.47,142.43,13.58576076]
[1768705040282,4.26074183,142.46,142.43,13.58576076]
[1768705045475,4.39409624,142.47,142.44,11.47765727]
[1768705045678,69.71821396,142.49,142.45,4.45735568]
[1768705045884,69.71821396,142.49,142.45,6.57663976]
[1768705045885,62.7,142.49,142.45,6.57663976]
[1768705046081,62.7,142.49,142.46,4.45735568]
[1768705046288,4.39409624,142.5,142.47,4.45735568]
[1768705046965,4.39409624,142.5,142.47,6.57663976]
[1768705047384,4.39409624,142.5,142.47,13.59495834]
[1768705049783,4.39409624,142.5,142.47,11.47632777]
[1768705051169,4.39409624,142.5,142.47,13.59495834]
[1768705052681,4.39409624,142.5,142.48,4.45735568]
[1768705052881,4.39409624,142.5,142.48,4.42735568]
[1768705053182,4.49409624,142.51,142.48,4.42735568]
[1768705053575,4.49409624,142.51,142.48,11.44581004]
[1768705054299,4.49409624,142.51,142.45,17.5493099]
[1768705054584,4.49409624,142.51,142.47,2.11863057]
[1768705055496,4.49409624,142.51,142.48,7.01845436]
[1768705056098,4.20572689,142.48,142.45,19.66794047]
[1768705056400,4.20572689,142.48,142.45,23.94163521]
[1768705056578,6.32435746,142.49,142.46,4.27369474]
[1768705057169,6.32435746,142.49,142.46,11.29287001]
[1768705058486,4.20572689,142.49,142.46,11.29287001]
[1768705059193,4.20572689,142.49,142.47,4.27369474]
[1768705059492,6.32435746,142.5,142.47,4.27369474]
[1768705059699,4.20572689,142.5,142.47,11.29270944]
[1768705063994,6.32435746,142.5,142.47,11.29270944]
[1768705064875,4.30572689,142.51,142.47,11.29270944]
[1768705065487,4.30572689,142.51,142.48,4.27369474]
[1768705065691,4.30572689,142.51,142.48,4.24369477]
[1768705067681,4.20572689,142.5,142.47,13.41134001]
[1768705067880,4.20572689,142.5,142.47,11.29270944]
[1768705073201,4.29346291,142.49,142.46,11.3872312]
[1768705075396,4.29346291,142.49,142.47,11.38673126]
[1768705076903,6.41209348,142.5,142.47,11.38673126]
[1768705086404,13.52926341,142.51,142.48,4.36771696]
[1768705087300,0.1,142.51,142.48,4.36771696]
[1768705089811,0.1,142.51,142.48,7.01834041]
[1768705089992,0.1,142.51,142.49,4.36771696]
[1768705096219,6.51209348,142.51,142.48,4.36771696]
[1768705096717,2.21863057,142.51,142.48,4.36771696]
[1768705096922,0.1,142.51,142.48,4.36771696]
[1768705097923,0.1,142.51,142.49,11.38575331]
[1768705099925,0.1,142.51,142.49,11.35575332]
[1768705103521,4.47985524,142.51,142.48,11.32023268]
[1768705103827,0.1,142.51,142.49,4.30170377]
[1768705106307,2.21863057,142.51,142.49,4.30170377]
[1768705106813,0.1,142.51,142.49,4.30170377]
[1768705107021,0.1,142.51,142.5,4.30170377]
[1768705122320,0.04,142.51,142.5,4.30170377]
[1768705129549,0.04,142.51,142.5,11.31924762]
[1768705131569,0.2,142.52,142.51,4.45199583]
[1768705135300,0.2,142.52,142.5,11.21777518]
[1768705149983,0.2,142.52,142.51,4.20023133]
[1768705150685,0.2,142.52,142.5,11.21777518]
[1768705152796,0.2,142.52,142.51,4.20023133]
[1768705153081,5.44258765,142.52,142.51,4.20023133]
[1768705156885,5.44258765,142.52,142.51,11.21728276]
[1768705157074,1e-08,142.52,142.51,11.21728276]
[1768705159280,1e-08,142.52,142.51,13.33564017]
[1768705159790,4.05419961,142.55,142.52,4.20023133]
[1768705161894,4.05419961,142.55,142.52,11.2167669]
[1768705166400,6.17255702,142.55,142.52,11.2167669]
[1768705169502,6.17168938,142.55,142.52,11.2167669]
[1768705173404,4.05419961,142.55,142.52,11.2167669]
[1768705175104,6.3893093,142.54,142.51,4.23120751]
[1768705176586,6.3893093,142.53,142.5,11.2483234]
[1768705176800,6.3893093,142.52,142.49,11.24902424]
[1768705177307,6.3893093,142.52,142.5,4.23120751]
[1768705177506,2.11748977,142.52,142.5,4.23120751]
[1768705178405,6.3893093,142.53,142.5,4.23120751]
[1768705183712,4.27181953,142.53,142.5,4.23120751]
[1768705183914,6.3893093,142.53,142.5,4.23120751]
[1768705184809,4.27181953,142.53,142.5,4.23120751]
[1768705187308,11.28789914,142.53,142.5,4.23120751]
[1768705188110,4.27181953,142.53,142.5,13.36622929]
[1768705188511,4.27181953,142.53,142.5,11.24873952]
[1768705189308,4.21181953,142.53,142.5,11.24873952]
[1768705189509,4.21181953,142.53,142.5,13.36622929]
[1768705189717,4.21181953,142.53,142.5,11.24873952]
[1768705190125,4.21181953,142.53,142.5,13.36622929]
[1768705190428,4.15181952,142.53,142.5,11.24873952]
[1768705200729,11.31580903,142.55,142.51,4.45540773]
[1768705200920,7.0151538,142.55,142.52,4.45540773]
[1768705201121,11.31580903,142.55,142.52,4.45540773]
[1768705205749,4.30065523,142.54,142.52,4.45540773]
[1768705209451,4.30065523,142.52,142.48,4.45540773]
[1768705209616,2.11748977,142.5,142.48,4.45540773]
[1768705209978,2.11748977,142.49,142.48,4.45540773]
[1768705210246,2.05748972,142.49,142.48,4.45540773]
[1768705210418,1.99748972,142.49,142.48,4.45540773]
[1768705210927,2.11748977,142.5,142.48,4.45540773]
[1768705212315,6.358745,142.49,142.46,11.47478809]
[1768705212512,2.11748977,142.48,142.46,11.47478809]
[1768705212737,2.11748977,142.48,142.46,4.45540773]
[1768705213524,13.37686421,142.49,142.46,4.45540773]
[1768705214945,6.358745,142.49,142.46,4.45540773]
[1768705215240,21.79207404,142.51,142.47,4.45540773]
[1768705215415,4.24125523,142.52,142.47,6.5728975]
[1768705215622,4.24125523,142.52,142.48,4.45540773]
[1768705216440,11.2579942,142.52,142.48,11.47387424]
[1768705216619,11.2579942,142.52,142.49,4.45540773]
[1768705216940,13.37548397,142.52,142.49,4.45540773]
[1768705220943,2.11748977,142.51,142.49,4.45540773]
[1768705221147,6.358745,142.51,142.48,4.45540773]
[1768705222027,2.11748977,142.5,142.48,4.45540773]
[1768705223638,2.11748977,142.49,142.47,4.32739795]
[1768705223849,6.358745,142.49,142.46,11.34675885]
[1768705226219,6.298745,142.49,142.46,11.34675885]
[1768705226428,5.858745,142.49,142.46,11.34675885]
[1768705229351,5.86041089,142.49,142.46,11.34675885]
[1768705229563,5.86041089,142.49,142.47,4.32739795]
[1768705233052,5.80041089,142.49,142.47,4.32739795]
[1768705233436,3.68125523,142.49,142.47,4.32739795]
[1768705233638,5.80041089,142.49,142.47,4.32739795]
[1768705236850,2.11915566,142.49,142.47,4.13673674]
[1768705239672,2.05915566,142.49,142.47,4.13673674]
[1768705242363,2.11915566,142.48,142.47,4.13673674]
[1768705243966,2.11915566,142.49,142.47,4.13673674]
[1768705252168,9.13588498,142.52,142.48,4.22420138]
[1768705252377,5.22364066,142.51,142.48,4.22420138]
[1768705252556,12.82274021,142.52,142.48,4.22420138]
[1768705252746,5.2236342,142.51,142.48,4.22420138]
[1768705252951,12.82274021,142.52,142.48,4.22420138]
[1768705253151,5.2236342,142.51,142.48,4.22420138]
[1768705253375,5.2236342,142.5,142.48,4.22420138]
[1768705253574,12.82274021,142.52,142.48,4.22420138]
[1768705253873,5.22557392,142.51,142.48,4.22420138]
[1768705254066,5.22557392,142.5,142.48,4.22420138]
[1768705254268,12.82274021,142.52,142.48,4.22420138]
[1768705254470,5.22810391,142.51,142.48,4.22420138]
[1768705254662,5.22810391,142.5,142.48,4.22420138]
[1768705254975,12.82274021,142.52,142.48,4.22420138]
[1768705255176,5.22826967,142.51,142.48,4.22420138]
[1768705255476,5.22826967,142.5,142.48,4.22420138]
[1768705255669,12.82274021,142.52,142.48,4.22420138]
[1768705255872,5.22876433,142.51,142.48,4.22420138]
[1768705256169,5.22876433,142.5,142.48,4.22420138]
[1768705256373,12.82274021,142.52,142.48,4.22420138]
[1768705256573,5.22912171,142.51,142.48,4.22420138]
[1768705256760,5.22912171,142.5,142.48,4.22420138]
[1768705256956,12.82274021,142.52,142.48,4.22420138]
[1768705257156,5.22912036,142.51,142.48,4.22420138]
[1768705257390,5.22912036,142.5,142.48,4.22420138]
[1768705257592,12.82274021,142.52,142.48,4.22420138]
[1768705257770,5.22951149,142.51,142.48,4.22420138]
[1768705257963,5.22951149,142.5,142.48,4.22420138]
[1768705258260,12.82274021,142.52,142.48,4.22420138]
[1768705258461,5.22905278,142.51,142.48,4.22420138]
[1768705258667,5.22905278,142.5,142.48,4.22420138]
[1768705258967,12.82274021,142.52,142.48,4.22420138]
[1768705259168,5.22906922,142.51,142.48,4.22420138]
[1768705259367,5.22906922,142.5,142.48,4.22420138]
[1768705259679,12.82274021,142.52,142.48,4.22420138]
[1768705259887,5.22926388,142.51,142.48,4.22420138]
[1768705260186,5.22926388,142.5,142.48,4.22420138]
[1768705260365,12.82274021,142.52,142.48,4.22420138]
[1768705260564,5.22945869,142.51,142.48,4.22420138]
[1768705260880,5.22945869,142.5,142.48,4.22420138]
[1768705261074,12.82274021,142.52,142.48,4.22420138]
[1768705261376,5.22969119,142.51,142.48,4.22420138]
[1768705261563,5.22969119,142.5,142.48,4.22420138]
[1768705261763,12.82274021,142.52,142.48,4.22420138]
[1768705261959,5.22968688,142.51,142.49,4.22420138]
[1768705262165,2.11915566,142.52,142.49,4.22420138]
[1768705262356,5.80601089,142.53,142.49,4.22420138]
[1768705263364,12.82176621,142.54,142.49,4.22420138]
[1768705263563,12.82176621,142.54,142.5,4.22420138]
[1768705266758,12.82176621,142.54,142.51,4.22420138]
[1768705267784,10.70261055,142.54,142.51,4.22420138]
[1768705268684,10.70261055,142.54,142.51,4.19420139]
[1768705273692,10.70261055,142.54,142.51,4.1642014]
[1768705276011,3.74625521,142.55,142.52,4.22420138]
[1768705276186,3.74625521,142.56,142.52,6.34335704]
[1768705277515,10.76085299,142.56,142.52,13.35970463]
[1768705277710,3.74625521,142.55,142.52,13.35970463]
[1768705278113,10.76085299,142.56,142.53,4.22420138]
[1768705281324,10.67665428,142.56,142.53,4.19420138]
[1768705283713,3.74625521,142.56,142.53,11.2102572]
[1768705284436,3.74625521,142.56,142.53,13.32941286]
[1768705284634,3.87595521,142.58,142.55,4.22232329]
[1768705284819,3.87595521,142.58,142.55,6.34147895]
[1768705285215,0.1,142.58,142.56,4.22232329]
[1768705285426,0.1,142.58,142.56,4.19232329]
[1768705287741,0.1,142.58,142.56,4.16232329]
[1768705306547,9.22918857,142.59,142.56,4.09511738]
[1768705306841,7.11317517,142.59,142.56,4.09511738]
[1768705308664,11.09572877,142.61,142.58,4.09511738]
[1768705308947,7.15944393,142.61,142.58,4.09511738]
[1768705309438,11.19279914,142.61,142.58,4.09511738]
[1768705310937,7.15944393,142.61,142.58,4.09511738]
[1768705313848,0.14719839,142.61,142.59,4.22976095]
[1768705322056,0.14719839,142.61,142.6,4.22976095]
[1768705322230,0.14719839,142.61,142.59,11.24285946]
[1768705322644,0.14719839,142.61,142.6,4.22976095]
[1768705323044,1e-08,142.62,142.61,4.22976095]
[1768705323230,0.1,142.64,142.62,4.22976095]
[1768705323448,0.1,142.64,142.63,4.22976095]
[1768705324656,0.1,142.64,142.62,4.22976095]
[1768705327863,0.1,142.64,142.62,11.24139916]
[1768705330164,4.03335521,142.62,142.59,4.22976095]
[1768705330468,4.03335521,142.61,142.58,4.22976095]
[1768705330659,6.14936861,142.62,142.58,4.22976095]
[1768705331035,6.14936861,142.61,142.58,4.22976095]
[1768705332469,6.14936861,142.61,142.58,11.24321293]
[1768705347673,4.03335521,142.61,142.58,11.24321293]
[1768705347877,6.14936861,142.61,142.58,11.24321293]
[1768705350670,2.1160134,142.6,142.58,11.24321293]
[1768705351057,2.1160134,142.59,142.57,4.38082352]
[1768705351269,2.1160134,142.59,142.57,11.39487871]
[1768705351474,2.11634036,142.58,142.56,11.39525029]
[1768705354480,6.14969557,142.59,142.56,11.39525029]
[1768705356184,2.11634036,142.61,142.57,4.27195272]
[1768705356483,6.14969557,142.61,142.57,4.27195272]
[1768705357470,6.14969557,142.61,142.58,7.01360639]
[1768705357673,6.14969557,142.61,142.58,11.28555911]
[1768705357875,11.04514392,142.62,142.59,4.27195272]
[1768705358062,13.16148428,142.62,142.59,4.27195272]
[1768705360786,9.12812907,142.62,142.59,4.27195272]
[1768705360988,4.03335521,142.61,142.58,11.28555911]
[1768705361586,6.14969557,142.61,142.58,11.28555911]
[1768705361789,6.14969557,142.61,142.58,4.27195272]
[1768705361790,13.16185131,142.61,142.58,4.27195272]
[1768705362389,6.14969557,142.61,142.58,4.27195272]
[1768705364486,6.14969557,142.6,142.56,11.28635235]
[1768705364679,7.01218909,142.61,142.55,2.11634036]
[1768705364680,6.14969557,142.59,142.55,11.28687697]
[1768705365080,4.03335521,142.59,142.56,11.28654299]
[1768705365280,6.14969557,142.59,142.56,11.28654299]
[1768705365478,6.14969557,142.59,142.56,4.27195272]
[1768705366375,6.14969557,142.58,142.55,11.28683972]
[1768705369691,6.14969557,142.57,142.54,24.55417113]
[1768705369889,3.97335522,142.56,142.54,24.55417113]
[1768705370092,3.91335523,142.56,142.54,24.55417113]
[1768705370297,2.11634036,142.57,142.55,4.27195272]
[1768705370595,2.11634036,142.58,142.55,4.27195272]
[1768705370978,2.11634036,142.58,142.55,11.28701369]
[1768705371996,6.03089559,142.58,142.55,11.28701369]
[1768705373198,3.91455523,142.58,142.55,11.28701369]
[1768705373401,6.03089559,142.58,142.55,11.28701369]
[1768705379102,13.04401734,142.59,142.56,4.25417425]
[1768705380004,7.01312175,142.59,142.56,4.25417425]
[1768705380208,21.4425303,142.63,142.59,4.25417425]
[1768705380512,6.03089559,142.63,142.59,4.25417425]
[1768705381289,13.04219017,142.63,142.59,4.25417425]
[1768705383191,10.92584981,142.63,142.6,4.25417425]
[1768705383394,13.04219017,142.63,142.6,4.25417425]
[1768705383599,10.92584981,142.63,142.6,4.25417425]
[1768705384913,3.91455523,142.63,142.6,4.25417425]
[1768705385112,3.91455523,142.63,142.6,11.26676684]
[1768705386798,3.91455523,142.63,142.6,7.01259259]
[1768705386999,0.1,142.64,142.61,4.25417425]
[1768705387490,7.11088812,142.64,142.61,4.25417425]
[1768705389716,9.22722848,142.64,142.61,4.25417425]
[1768705391019,7.11088812,142.64,142.61,4.25417425]
[1768705391211,9.22722848,142.64,142.61,4.25417425]
[1768705391999,3.91455523,142.63,142.6,4.25417425]
[1768705393318,13.14178371,142.64,142.6,4.25417425]
[1768705393615,3.91455523,142.63,142.59,9.12930406]
[1768705393821,3.91455523,142.62,142.59,11.26713795]
[1768705394118,3.91455523,142.61,142.58,7.01342708]
[1768705394317,3.91455523,142.61,142.58,11.26760133]
[1768705395109,2.11634036,142.62,142.58,11.26760133]
[1768705395310,6.03089559,142.62,142.59,4.25417425]
[1768705396526,5.53089559,142.62,142.59,4.25417425]
[1768705396713,2.11634036,142.62,142.6,4.25417425]
[1768705396915,2.11634036,142.63,142.6,4.25417425]
[1768705397418,24.58720579,142.64,142.6,4.25417425]
[1768705398229,2.11634036,142.63,142.59,4.25417425]
[1768705398526,3.41955523,142.62,142.59,4.25417425]
[1768705398721,12.54759711,142.62,142.59,4.25417425]
[1768705399304,12.54759711,142.62,142.59,11.26725356]
[1768705399305,5.53589559,142.62,142.59,11.26725356]
[1768705399612,3.41955523,142.62,142.59,11.26725356]
[1768705400116,9.12767948,142.63,142.59,11.26725356]
[1768705400317,12.54723471,142.63,142.59,11.26725356]
[1768705401828,12.54723471,142.63,142.6,4.25417425]
[1768705405917,12.04723471,142.63,142.6,4.25417425]
[1768705407935,2.11634036,142.61,142.56,4.46530782]
[1768705408112,5.53589559,142.6,142.56,4.46530782]
[1768705408310,2.11634036,142.59,142.56,4.46530782]
[1768705408511,5.53589559,142.6,142.56,4.46530782]
[1768705409015,5.53589559,142.6,142.56,7.0144773]
[1768705409016,12.5486103,142.6,142.56,7.0144773]
[1768705409220,12.5486103,142.6,142.57,4.46530782]
[1768705410435,9.12905507,142.6,142.57,4.46530782]
[1768705411438,9.12886916,142.6,142.57,4.46530782]
[1768705412228,2.11615445,142.6,142.57,11.47938781]
[1768705412739,17.5290983,142.62,142.58,4.46530782]
[1768705412740,12.54752459,142.62,142.58,4.46530782]
[1768705413525,12.54752459,142.62,142.58,11.47890642]
[1768705414842,10.43137014,142.62,142.58,11.47890642]
[1768705415039,12.54752459,142.62,142.58,11.47890642]
[1768705416739,5.53570968,142.61,142.58,7.0135986]
[1768705417044,3.41955523,142.6,142.58,7.0135986]
[1768705417345,2.11615445,142.61,142.58,7.0135986]
[1768705417640,2.11615445,142.61,142.58,11.09253326]
[1768705418448,2.11615445,142.61,142.56,19.65198033]
[1768705418449,9.12843298,142.61,142.57,7.01406124]
[1768705418621,2.11615445,142.59,142.57,4.07893466]
[1768705418816,2.05615446,142.59,142.56,4.07893466]
[1768705419243,5.4163097,142.59,142.56,4.07893466]
[1768705419840,5.47630969,142.57,142.54,28.6331765]
[1768705420050,2.11615445,142.56,142.54,11.09450923]
[1768705420231,2.05615446,142.56,142.54,11.09450923]
[1768705422444,1.99615447,142.56,142.54,11.09450923]
[1768705427151,2.11615445,142.56,142.54,11.09450923]
[1768705428252,2.11615445,142.56,142.55,4.07893466]
[1768705429355,9.12993485,142.58,142.55,4.07893466]
[1768705429747,3.30075525,142.59,142.55,4.07893466]
[1768705429948,5.4169097,142.61,142.57,4.07893466]
[1768705430133,2.11615445,142.6,142.57,4.07893466]
[1768705431057,9.12885403,142.6,142.57,4.07893466]
[1768705435961,9.12885403,142.6,142.55,2.11615445]
[1768705435962,5.4169097,142.58,142.55,4.38810205]
[1768705436136,5.4169097,142.57,142.54,4.38810205]
[1768705436336,5.30721299,142.57,142.54,4.38810205]
[1768705436535,2.11615445,142.57,142.54,4.38810205]
[1768705438161,2.11615445,142.56,142.54,4.38810205]
[1768705438660,2.11615445,142.56,142.54,11.40365577]
[1768705439154,5.30830996,142.57,142.54,11.40365577]
[1768705440040,2.11615445,142.57,142.54,11.40365577]
[1768705440566,10.20600705,142.58,142.55,4.38810205]
[1768705440747,2.11615445,142.57,142.55,4.38810205]
[1768705442459,2.11615445,142.56,142.55,4.38810205]
[1768705442654,2.11615445,142.56,142.53,7.01589883]
[1768705442964,6.38660597,142.56,142.52,7.01650991]
[1768705444139,2.11615445,142.56,142.52,7.01650991]
[1768705444461,11.2845545,142.57,142.52,7.01650991]
[1768705444658,2.11615445,142.56,142.53,7.01594399]
[1768705444864,13.40070895,142.57,142.54,4.38810205]
[1768705447160,11.2845545,142.57,142.54,4.38810205]
[1768705447372,13.40070895,142.57,142.54,4.38810205]
[1768705452366,11.28414902,142.58,142.55,4.38810205]
[1768705452547,76.09939847,142.6,142.56,4.38810205]
[1768705452872,4.27045152,142.59,142.56,4.38810205]
[1768705453565,71.82894695,142.6,142.56,4.38810205]
[1768705454168,76.09939847,142.6,142.56,4.38810205]
[1768705454372,13.39939847,142.6,142.56,4.38810205]
[1768705454552,13.39939847,142.6,142.57,4.38810205]
[1768705460777,4.27045152,142.58,142.56,7.0145595]
[1768705460979,6.38660597,142.58,142.55,11.40304596]
[1768705464961,4.33525809,142.57,142.55,11.40304596]
[1768705465477,6.45141254,142.58,142.55,11.40304596]
[1768705466469,4.33525809,142.58,142.55,11.40304596]
[1768705471486,4.33525809,142.58,142.56,4.14051232]
[1768705471982,4.33525809,142.58,142.56,11.15503617]
[1768705473987,11.34748785,142.61,142.57,4.14051232]
[1768705474165,4.33525809,142.61,142.57,4.14051232]
[1768705474686,4.33525809,142.61,142.57,6.25681546]
[1768705474873,4.33525809,142.61,142.58,4.26574374]
[1768705475281,4.33525809,142.61,142.58,11.27927517]
[1768705478186,6.45156123,142.61,142.58,11.27927517]
[1768705478391,4.35983039,142.6,142.58,7.01353143]
[1768705479271,4.35983039,142.6,142.58,11.27927517]
[1768705480492,4.35983039,142.61,142.58,11.27927517]
[1768705481295,6.47613353,142.61,142.58,11.27927517]
[1768705483175,4.35983039,142.6,142.58,11.27927517]
[1768705486199,4.35983039,142.59,142.57,11.27984207]
[1768705486387,4.35983039,142.59,142.56,4.26574374]
[1768705486693,4.35983039,142.58,142.55,11.2805343]
[1768705486867,4.2998304,142.58,142.55,11.2805343]
[1768705487594,4.2998304,142.58,142.56,4.26574374]
[1768705487895,2.11630314,142.59,142.56,4.26574374]
[1768705488878,6.47613353,142.59,142.56,4.26574374]
[1768705489592,4.35983039,142.58,142.55,11.2805343]
[1768705491599,4.2998304,142.58,142.55,11.2805343]
[1768705491786,4.23983041,142.58,142.55,11.2805343]
[1768705498008,6.35613355,142.58,142.55,7.01479056]
[1768705498181,4.08466276,142.57,142.55,7.01479056]
[1768705498604,4.02466277,142.57,142.55,4.3870235]
[1768705500503,4.02466277,142.57,142.55,11.40183371]
[1768705501001,4.08466276,142.58,142.55,11.40183371]
[1768705505016,4.08466276,142.58,142.54,7.01557457]
[1768705505017,6.2009659,142.57,142.54,7.01557457]
[1768705505308,6.2009659,142.57,142.54,11.40259807]
[1768705505631,4.08466276,142.56,142.54,4.3870235]
[1768705505783,6.2009659,142.57,142.54,4.3870235]
[1768705510108,4.08466276,142.57,142.54,11.40221582]
[1768705510288,4.08466276,142.57,142.54,13.51851896]
[1768705510907,4.08466276,142.57,142.55,4.3870235]
[1768705512610,4.08466276,142.57,142.54,11.40221582]
[1768705521624,4.02466277,142.57,142.54,11.40221582]
[1768705526418,9.13049369,142.57,142.53,7.01606679]
[1768705526624,2.11630314,142.56,142.53,7.01606679]
[1768705526826,2.11630314,142.56,142.53,11.28406346]
[1768705527126,2.11630314,142.56,142.54,4.26799667]
[1768705527506,2.11630314,142.55,142.51,24.55968001]
[1768705527706,2.11630314,142.55,142.52,4.26799667]
[1768705528114,7.01463998,142.56,142.52,4.26799667]
[1768705528315,2.11630314,142.55,142.52,4.26799667]
[1768705528630,6.34123021,142.55,142.52,4.26799667]
[1768705528832,6.34123021,142.55,142.52,11.28451181]
[1768705533337,6.34249083,142.55,142.52,11.28451181]
[1768705533536,6.28249084,142.55,142.52,11.28451181]
[1768705534435,4.16492708,142.55,142.52,11.28451181]
[1768705534637,6.28249084,142.55,142.52,11.28451181]
[1768705538129,4.26921942,142.54,142.51,11.43188605]
[1768705538329,6.32678319,142.54,142.51,11.43188605]
[1768705539141,4.20921943,142.54,142.51,11.43188605]
[1768705539341,6.32678319,142.54,142.51,11.43188605]
[1768705539819,6.2667832,142.54,142.51,11.43188605]
[1768705540345,6.20678321,142.54,142.51,11.43188605]
[1768705540819,4.08921945,142.54,142.51,11.43188605]
[1768705541026,6.20678321,142.54,142.51,11.43188605]
[1768705542339,6.38678318,142.53,142.51,7.01705143]
[1768705542644,6.38678318,142.53,142.5,11.43224253]
[1768705543239,6.38678318,142.53,142.51,4.41483462]
[1768705543445,6.32678319,142.53,142.51,4.41483462]
[1768705544751,6.32678319,142.53,142.5,4.41483462]
[1768705545745,6.32678319,142.53,142.5,11.43217874]
[1768705546651,4.26921942,142.52,142.5,11.43217874]
[1768705546837,4.20921943,142.52,142.5,11.43217874]
[1768705547032,4.14921944,142.52,142.5,11.43217874]
[1768705547237,2.11756376,142.53,142.5,11.43217874]
[1768705547438,7.01459034,142.56,142.5,11.43217874]
[1768705547632,2.11756376,142.53,142.5,11.43217874]
[1768705549052,6.38678318,142.53,142.5,11.43217874]
[1768705550127,4.26921942,142.51,142.49,7.01783711]
[1768705550337,6.38678318,142.52,142.49,11.43267173]
[1768705553934,4.26921942,142.52,142.49,11.43267173]
[1768705554134,6.38678318,142.52,142.49,11.43267173]
[1768705554549,4.1072358,142.51,142.49,11.43267173]
[1768705554734,4.04723581,142.51,142.49,11.43267173]
[1768705555238,2.11756376,142.52,142.49,11.43267173]
[1768705556758,6.22479956,142.52,142.49,11.43267173]
[1768705559755,2.11756376,142.51,142.49,11.43267173]
[1768705561759,4.1072358,142.52,142.49,11.43267173]
[1768705561951,2.11756376,142.51,142.49,11.43267173]
[1768705565256,6.22479956,142.52,142.49,11.43267173]
[1768705568861,4.1072358,142.51,142.48,11.0907342]
[1768705569765,6.22479956,142.5,142.47,11.09107904]
[1768705570150,4.1072358,142.5,142.47,7.01887375]
[1768705570348,4.1072358,142.51,142.48,4.07220529]
[1768705570850,4.1072358,142.51,142.48,11.09050873]
[1768705573375,4.1072358,142.5,142.47,7.01902154]
[1768705573555,4.1072358,142.5,142.47,11.09122683]
[1768705579267,4.1072358,142.5,142.47,4.07220529]
[1768705579468,11.12484857,142.5,142.47,4.07220529]
[1768705579872,13.24241233,142.5,142.47,3.57220529]
[1768705580077,13.24241233,142.5,142.46,7.0191818]
[1768705580078,4.1072358,142.49,142.46,7.0191818]
[1768705580269,4.04723581,142.49,142.46,7.0191818]
[1768705580687,4.04723581,142.49,142.46,11.09138709]
[1768705582767,13.18289699,142.49,142.46,4.07220529]
[1768705582968,13.5976958,142.49,142.46,4.07220529]
[1768705583986,13.5976958,142.49,142.46,11.09170134]
[1768705585485,6.57959838,142.49,142.46,11.09170134]
[1768705586192,4.46203462,142.49,142.46,11.09170134]
[1768705588375,7.01711163,142.51,142.49,4.49495353]
[1768705590884,13.59637514,142.52,142.49,4.49495353]
[1768705591089,4.46203462,142.52,142.49,11.51286481]
[1768705591272,69.27959838,142.53,142.5,4.49495353]
[1768705591472,4.46203462,142.53,142.5,4.49495353]
[1768705592284,4.46203462,142.52,142.5,4.49495353]
[1768705592872,4.46203462,142.52,142.49,11.51286481]
[1768705593073,4.46203462,142.51,142.48,11.51334129]
[1768705594293,4.49416064,142.5,142.48,7.01838776]